[Event "2nd Bieszczady Chess-ch A 2022"]
[Site "Bystre"]
[Date "2022.07.18"]
[Round "1.5"]
[White "Janzer, Hubert"]
[Black "Bugajski, Robert"]
[Result "1-0"]
[ECO "D86"]
[WhiteElo "1839"]
[BlackElo "2075"]
[Annotator "TA"]
[PlyCount "60"]
[EventDate "2022.07.17"]
[EventCountry "POL"]
[SourceTitle "playchess.com"]
[Source "ChessBase"]
[SourceQuality "1"]
[TimeControl "5400+30"]

{[%evp 15,60,20,20,0,9,-95,-94,-105,-105,-93,-89,-181,-188,-187,-202,-179,-189,-202,-158,-182,-160,-227,-210,-265,-247,-254,-269,-258,-263,-255,-195,-299,-286,-578,-500,-573,-577,-562,-527,-535,-524,-522,-516,-779,-795,-754,-730]} 1. d4 {[%emt 0:03:32]} Nf6 {[%emt 0:00:19]} 2. c4 {[%emt 0:00:27]} g6 {[%emt 0:00:18]} 3. Nc3 {[%emt 0:00:34]} d5 {[%emt 0:00:27]} 4. cxd5 {[%emt 0:00:48]} Nxd5 {[%emt 0:00:10]} 5. e4 {[%emt 0:00:35]} Nxc3 {[%emt 0:00:09]} 6. bxc3 {[%emt 0:00:05]} Bg7 {[%emt 0:00:03]} 7. Bc4 {[%emt 0:05:19]} c5 {[%emt 0:00:15]} 8. Ne2 {[%emt 0:00:55]} Nc6 {[%emt 0:00:31][%cal Rc5d4]} 9. d5 {[%emt 0:06:10] D86: Exchange Grünfeld: Classical Line (7 Bc4).} Ne5 {[%emt 0:06:27] [#]} 10. f4 $146 {[%emt 0:00:42]} ({Predecessor:} 10. Bb3 Qa5 11. O-O O-O 12. a4 e6 13. c4 Bd7 14. Rb1 exd5 15. f4 Ng4 16. h3 {½-½ (16) Lins,T (2460)-Morozov,D (2481) ICCF email 2019}) 10... Nxc4 $17 {[%emt 0:08:11]} 11. Qa4+ {[%emt 0:03:51] [#] Black is better.} Qd7 $1 {[%emt 0:01:57]} 12. Qxc4 {[%emt 0:00:24]} b6 {[%emt 0:00:28]} 13. Rb1 {[%emt 0:04:01]} (13. a4 $17) 13... e6 $19 {[%emt 0:01:40]} 14. O-O {[%emt 0:04:52][%cal Of4f5]} exd5 {[%emt 0:02:25]} 15. exd5 {[%emt 0:02:11][%cal Of4f5]} O-O {[%emt 0:03:49]} 16. f5 {[%emt 0:07:08]} Re8 {[%emt 0:06:50]} (16... gxf5 17. Ng3 $11) 17. Ng3 {[%emt 0:07:42]} Bb7 {[%emt 0:02:43]} (17... gxf5 18. Qd3 (18. Nxf5 $2 Qxf5 19. Rxf5 Bxf5 $19) 18... c4 19. Qf3 $11 (19. Qxc4 Re5 $11)) 18. fxg6 {[%emt 0:03:45]} (18. Rd1 $17 {was necessary.}) 18... hxg6 {[%emt 0:00:54]} ({Inferior is} 18... fxg6 19. Rd1) 19. d6 {[%emt 0:00:25]} Qe6 {[%emt 0:09:47]} 20. Qd3 {[%emt 0:05:28]} Rad8 {[%emt 0:09:20]} ({Avoid the trap} 20... Qxa2 $2 21. Rb2 Qa6 22. c4 $19) 21. Bf4 {[%emt 0:03:16]} Qxa2 {[%emt 0:09:20][%csl Gb7][%cal Ra2g2] [#]} 22. Rf2 {[%emt 0:00:20]} Qa4 $40 {[%emt 0:03:57][%mdl 128] Black wants a kill.} 23. Bg5 {[%emt 0:09:38]} (23. h4 {was worth a try.}) 23... Rd7 {[%emt 0:01:25]} 24. Rbb2 $2 {[%emt 0:09:00]} (24. Bf4) 24... Re1+ {[%emt 0:04:08] Black is clearly winning.} 25. Nf1 {[%emt 0:01:02]} Ba6 {[%emt 0:06:15] This bishop pair is nice.} 26. Qf3 {[%emt 0:03:28]} Bxf1 {[%emt 0:03:14]} 27. Rxf1 {[%emt 0:00:28]} Rxf1+ {[%emt 0:00:44]} 28. Qxf1 {[%emt 0:00:04]} Bxc3 {[%emt 0:02:04]} 29. Re2 {[%emt 0:00:44]} (29. Rb1 $142 Qd4+ 30. Kh1) 29... Rxd6 {[%emt 0:00:50] Strongly threatening ...Rd1.} 30. Qf3 {[%emt 0:00:30]} Bd4+ {[%emt 0:02:39][%mdl 32768] White got outplayed after the opening.  Weighted Error Value: White=0.61/Black=0.10 (very precise) . Loss on time!?} 1-0

[Event "2nd Bieszczady Chess-ch A 2022"]
[Site "Bystre"]
[Date "2022.07.18"]
[Round "1.6"]
[White "Kasperek, Ryszard"]
[Black "Palacki, Rafal"]
[Result "1-0"]
[ECO "B31"]
[WhiteElo "2058"]
[BlackElo "1832"]
[Annotator "TA"]
[PlyCount "89"]
[EventDate "2022.07.17"]
[EventCountry "POL"]
[SourceTitle "playchess.com"]
[Source "ChessBase"]
[SourceQuality "1"]
[TimeControl "5400+30"]

{[%evp 14,89,34,34,35,31,46,42,44,45,54,47,42,44,47,-35,-47,-33,-43,-40,-35,-52,-31,-64,74,65,71,82,75,71,82,83,90,90,114,120,135,74,88,17,11,0,0,7,18,0,0,-110,-136,-91,-111,-181,-158,-244,-180,-261,0,0,8,7,8,8,196,29,23,30,22,40,196,148,400,400,417,416,589,589,962,812]} 1. e4 {[%emt 0:00:01]} c5 {[%emt 0:00:09]} 2. Nf3 {[%emt 0:00:11]} Nc6 {[%emt 0:00:05]} 3. Bb5 {[%emt 0:00:16]} g6 {[%emt 0:00:06]} 4. O-O {[%emt 0:00:31]} Bg7 {[%emt 0:00:04]} 5. Re1 {[%emt 0:00:57]} e5 {[%emt 0:01:41]} 6. Bxc6 {[%emt 0:04:44]} dxc6 {[%emt 0:00:05]} 7. d3 {[%emt 0:00:13]} Ne7 {[%emt 0:01:18]} 8. Be3 {[%emt 0:14:19]} b6 {[%emt 0:00:07] B31: Sicilian: 2...Nc6 3 Bb5 g6.} 9. Nbd2 {[%emt 0:00:03]} h6 {[%emt 0:03:41]} 10. Nc4 {[%emt 0:02:02]} Qc7 {[%emt 0:00:37] [#] White is slightly better.} 11. a3 $146 {[%emt 0:03:54]} ({Predecessor:} 11. a4 Be6 12. a5 O-O 13. b3 g5 14. Ra2 f5 15. exf5 Nxf5 16. Qe2 Bf7 17. h3 {0-1 (34) Bernotas,A (2292)-Narmontas,M (2409) Panevezys 2012}) 11... Be6 {[%emt 0:18:07]} 12. b4 {[%emt 0:04:23]} cxb4 {[%emt 0:01:10]} 13. axb4 {[%emt 0:00:07][%cal Oe3b6] And now Bxb6! would win.} O-O {[%emt 0:00:28]} 14. Nfd2 {[%emt 0:14:37]} (14. Ra3 $14) 14... f5 $15 {[%emt 0:03:42]} 15. f3 {[%emt 0:00:10]} f4 {[%emt 0:00:54]} 16. Bf2 {[%emt 0:00:03]} g5 {[%emt 0:01:28]} 17. Ra3 {[%emt 0:00:11]} Rad8 {[%emt 0:02:40]} 18. Qe2 {[%emt 0:08:12]} h5 {[%emt 0:03:13]} (18... Nc8 $15 {keeps the upper hand.}) 19. Rea1 $16 {[%emt 0:00:57]} Nc8 {[%emt 0:01:52] [#]} 20. Rxa7 $1 {[%emt 0:01:39]} Nxa7 {[%emt 0:00:54]} 21. Bxb6 {[%emt 0:00:05]} Qf7 {[%emt 0:02:50]} 22. Rxa7 {[%emt 0:01:04]} Rd7 {[%emt 0:00:41]} 23. Ra6 {[%emt 0:09:57]} g4 {[%emt 0:22:37]} 24. Bc5 {[%emt 0:00:07][%csl LRc6,LRf8]} Rfd8 {[%emt 0:00:17]} 25. Rxc6 {[%emt 0:08:37] White is more active.} (25. Na5 $142) 25... Ra8 {[%emt 0:02:06]} 26. Na5 {[%emt 0:07:58]} (26. Qf1 $16) 26... Rc7 $11 {[%emt 0:03:06]} 27. Rxc7 $1 {[%emt 0:13:20]} Qxc7 {[%emt 0:00:26]} 28. Nab3 {[%emt 0:01:10]} Ra2 {[%emt 0:07:35]} 29. Nc4 {[%emt 0:00:14]} Bf8 {[%emt 0:01:16]} 30. g3 {[%emt 0:03:24]} (30. Bxf8 $11 {keeps the balance.} Kxf8 31. Kf1) 30... Bxc5+ $17 {[%emt 0:06:41]} 31. bxc5 {[%emt 0:00:47]} (31. Nxc5 $2 Ra1+ 32. Kf2 gxf3 33. Qxf3 Bg4 $19) 31... Qb8 {[%emt 0:02:50]} 32. Qd2 {[%emt 0:00:59]} (32. Qd1 $17) 32... gxf3 $19 {[%emt 0:04:50][%cal Oa2a1] Threatens to win with ...Ra1+!} 33. Kf2 {[%emt 0:00:38]} (33. Qc3 $17 fxg3 34. hxg3) 33... Qd8 {[%emt 0:03:06]} 34. Qc3 {[%emt 0:00:08]} (34. Kxf3 $142 fxg3 35. Qh6 (35. hxg3 $2 Qf6+ 36. Kg2 h4 $19) 35... Qf8+ 36. Qxf8+ Kxf8 37. Kxg3 Bxc4 38. dxc4) 34... Kh7 $2 {[%emt 0:03:51]} (34... fxg3+ $1 $19 35. hxg3 h4 36. Nxe5 hxg3+ 37. Kxg3 Qg5+ 38. Kxf3 Ra8) 35. Nxe5 {[%emt 0:01:19] Pair of Knights!} fxg3+ {[%emt 0:02:21]} 36. hxg3 {[%emt 0:00:00] The board is on fire.} h4 {[%emt 0:00:54] Hoping for ...hxg3+.} 37. Nxf3 {[%emt 0:00:22]} hxg3+ {[%emt 0:00:25] [#]} (37... Qg8 $11 {and Black stays safe.} 38. Ke3 (38. gxh4 Bxb3 39. Qe5 Rxc2+ 40. Ke3 Qc8 $11) 38... Qxg3) 38. Kxg3 $2 {[%emt 0:00:16]} ({White has to play} 38. Kg2 $1 $18) 38... Qg8+ $1 $11 {[%emt 0:00:02]} 39. Kf4 {[%emt 0:00:08] aiming for Qf6.} Qf8+ {[%emt 0:00:30]} 40. Ke3 {[%emt 0:00:00] Ng5+ is the strong threat.} Qh6+ {[%emt 0:00:00] [#]} (40... Bxb3 $14 41. Qxb3 (41. cxb3 Qh6+ 42. Kd4 Qf6+ 43. Ne5 Qd8+ 44. Ke3 Qg5+ 45. Kd4 Qd8+ 46. Ke3 Qg5+ 47. Kd4 Qd8+ $11) 41... Qxc5+ 42. d4 Qxc2 43. Qf7+ (43. Qxc2 Rxc2 44. Ne5 Kh6 $14) 43... Kh8 44. Qf8+ (44. Kf4 Qc1+ 45. Ke5 Ra5+ 46. d5 Ra6 $16) 44... Kh7 45. Qf7+ (45. Kf4 Qc7+ 46. Kg4 Rg2+ 47. Kh5 Rh2+ 48. Nxh2 Qxh2+ 49. Kg4 Qg2+ 50. Kh5 Qh2+ 51. Kg5 Qg1+ 52. Kf6 Qxd4+ 53. e5 Qf4+ 54. Ke7 Qxe5+ 55. Kf7 Qf5+ 56. Ke8 Qxf8+ 57. Kxf8 $11) 45... Kh8 46. Qe8+ (46. Kf4 Qc1+ 47. Ke5 Ra5+ 48. d5 Ra6 $16) 46... Kg7 47. Qe7+ Kg8 48. Qd8+ (48. Kf4 Ra6 $14) 48... Kg7 49. Qe7+ (49. Kf4 Ra6 $14) 49... Kg8 50. Qe8+ (50. Kf4 Ra6 $14) 50... Kh7 51. Qf7+ (51. Kf4 Qc1+ 52. Kf5 Rf2 $11)) 41. Kf2 $1 $18 {[%emt 0:00:00] Black must now prevent Nbd4.} ({Don't play} 41. Ke2 $6 Bg4 $16) 41... Ra8 $2 {[%emt 0:00:00][%mdl 8192]} (41... Bg4 $16 {might work better.}) 42. Qd2 {[%emt 0:00:00]} Qf6 {[%emt 0:00:00]} 43. Qg5 {[%emt 0:00:00]} Qf7 {[%emt 0:00:00]} (43... Qg6 {was called for.} 44. Qe7+ Kg8) 44. Nbd4 {[%emt 0:00:00] Strongly threatening Qh4+.} Ra2 {[%emt 0:00:00]} 45. Ke3 {[%emt 0:00:00] What a bad dream for Black.  Weighted Error Value: White=0.29 (precise) /Black=0.45} 1-0

[Event "2nd Bieszczady Chess-ch A 2022"]
[Site "Bystre"]
[Date "2022.07.18"]
[Round "1.7"]
[White "Kopacz, Lukasz"]
[Black "Babiarz, Arkadiusz"]
[Result "1/2-1/2"]
[ECO "A13"]
[WhiteElo "1821"]
[BlackElo "2027"]
[Annotator "TA"]
[PlyCount "111"]
[EventDate "2022.07.17"]
[EventCountry "POL"]
[SourceTitle "playchess.com"]
[Source "ChessBase"]
[SourceQuality "1"]
[TimeControl "5400+30"]

{[%evp 12,111,19,10,30,-1,52,10,10,10,18,9,8,0,11,-79,0,-11,0,0,11,8,16,10,10,0,0,0,1,-29,0,0,0,-8,-6,-6,-6,-4,-4,-10,-1,-32,-30,-34,-29,-29,-27,-22,-22,-20,-17,-20,-18,-20,-17,-35,-35,-35,-37,-75,-67,-109,-117,-104,-114,-148,-147,-151,-141,-141,-141,-141,-114,-143,-146,-145,-145,-130,-32,-32,-32,-32,-32,-32,-31,-32,-32,-32,-32,-32,-32,-32,-32,-32,-32,-32,-31,-31,-31,-32,-8,-8]} 1. c4 {[%emt 0:00:03]} e6 {[%emt 0:00:05]} 2. Nf3 {[%emt 0:00:26]} d5 {[%emt 0:00:14]} 3. b3 {[%emt 0:00:32]} Nf6 {[%emt 0:02:07]} 4. Bb2 {[%emt 0:00:12]} c6 {[%emt 0:01:59]} 5. g3 {[%emt 0:00:10]} Nbd7 {[%emt 0:01:29]} 6. Bg2 {[%emt 0:03:12]} Bd6 {[%emt 0:00:23]} 7. O-O {[%emt 0:00:27]} e5 {[%emt 0:07:39] A13: English Opening: 1...e6.} 8. d3 {[%emt 0:02:49]} Qe7 {[%emt 0:08:32]} (8... O-O $11) 9. e3 {[%emt 0:03:08]} O-O {[%emt 0:01:09]} 10. Nc3 {[%emt 0:00:46]} Nb6 {[%emt 0:05:22] [#]} 11. h3 $146 {[%emt 0:02:24]} ({Predecessor:} 11. Re1 Bg4 12. Qc2 Rad8 13. c5 Bxc5 14. Nxe5 Bh5 15. Ne2 Bb4 16. Rec1 Bd6 17. d4 {0-1 (37) Rasmussen,J-Bogdanovich,G (2355) Copenhagen 1991}) 11... h6 {[%emt 0:04:23]} 12. Qe2 {[%emt 0:00:41]} Re8 {[%emt 0:06:38]} 13. e4 {[%emt 0:01:43]} (13. cxd5 $11 Nbxd5 14. Ne4) 13... dxc4 {[%emt 0:14:30]} ({Better is} 13... d4 $17 14. Nb1 a5) 14. dxc4 {[%emt 0:00:15]} Be6 {[%emt 0:03:52]} 15. Rfd1 {[%emt 0:00:33]} Rad8 {[%emt 0:01:06]} 16. Rd2 {[%emt 0:01:58]} a5 {[%emt 0:04:33]} 17. Rad1 {[%emt 0:02:18]} Bc7 {[%emt 0:03:55]} 18. Rxd8 {[%emt 0:01:40]} Rxd8 {[%emt 0:00:05]} 19. Rxd8+ {[%emt 0:00:08]} Qxd8 {[%emt 0:00:05]} 20. Qd2 {[%emt 0:03:31]} Qe7 {[%emt 0:01:37]} 21. Ne1 {[%emt 0:03:14]} a4 {[%emt 0:01:44]} 22. Nc2 {[%emt 0:00:41]} axb3 {[%emt 0:01:13]} 23. axb3 {[%emt 0:00:09]} Qd7 {[%emt 0:06:34]} 24. Qxd7 {[%emt 0:01:10]} Nbxd7 {[%emt 0:00:05]} 25. Ba3 {[%emt 0:01:08] Prevents Nc5.} Bb6 {[%emt 0:02:11]} 26. Kf1 {[%emt 0:10:33][%cal Oc3d5]} Nc5 {[%emt 0:01:23]} 27. Bxc5 {[%emt 0:01:59]} Bxc5 {[%emt 0:03:36]} 28. Nd1 {[%emt 0:02:22]} Kf8 {[%emt 0:02:59]} 29. Ke2 {[%emt 0:01:15]} Ke7 {[%emt 0:00:47]} 30. Nde3 {[%emt 0:00:38]} g6 {[%emt 0:01:49][%cal Bg7g6,Bg6f5,Bf5f4][%mdl 32]} 31. b4 {[%emt 0:03:47]} Ba7 {[%emt 0:00:27]} 32. Kd3 {[%emt 0:01:16]} Nh5 {[%emt 0:01:45]} 33. Bf1 {[%emt 0:09:05]} f5 {[%emt 0:00:39]} 34. exf5 {[%emt 0:00:57]} gxf5 {[%emt 0:00:02]} 35. Be2 {[%emt 0:03:21]} Nf6 {[%emt 0:00:02]} 36. f4 {[%emt 0:03:36] [#]} Ne4 $1 {[%emt 0:09:54]} 37. fxe5 {[%emt 0:03:02]} Nxg3 {[%emt 0:00:02] White must now prevent ...f4.} 38. Bf3 {[%emt 0:04:24]} f4 {[%emt 0:01:22][%csl LRe3,LRh3]} 39. Ng4 {[%emt 0:00:20]} Bf5+ {[%emt 0:00:31]} 40. Kd2 {[%emt 0:00:00] [#]} h5 $1 {[%emt 0:00:00]} 41. Nf6 {[%emt 0:00:00]} Bxh3 {[%emt 0:00:00]} 42. Nxh5 {[%emt 0:00:00]} Nxh5 {[%emt 0:00:00]} 43. Bxh5 $17 {[%emt 0:00:00][%mdl 4096] Endgame KBB-KBN} Ke6 {[%emt 0:00:00]} 44. Bf3 {[%emt 0:00:00]} Bf1 {[%emt 0:00:00]} (44... Kxe5 $17 {And now ...Bg1 would win.} 45. b5 Bd7) 45. b5 $1 $15 {[%emt 0:00:00]} cxb5 {[%emt 0:00:41]} 46. cxb5 {[%emt 0:00:00]} Bxb5 {[%emt 0:00:11] Strongly threatening ...Ba6.} 47. Bxb7 {[%emt 0:00:00]} Kxe5 {[%emt 0:00:06]} 48. Bf3 {[%emt 0:00:00]} Kf5 {[%emt 0:00:28]} (48... Bb6 $5 49. Ne1 Bg1 $11) 49. Ke1 {[%emt 0:00:00]} Bc5 {[%emt 0:01:16]} 50. Kd1 $1 {[%emt 0:00:00]} Kg5 {[%emt 0:00:20]} 51. Ne1 {[%emt 0:00:00]} Kh4 {[%emt 0:00:16]} 52. Be4 {[%emt 0:01:27]} Kg3 {[%emt 0:00:17] ...Be7 is the strong threat.} 53. Nd3 {[%emt 0:01:02]} f3 {[%emt 0:02:24]} 54. Bxf3 $1 {[%emt 0:00:50]} Bxd3 {[%emt 0:00:23]} 55. Be2 {[%emt 0:00:08]} Bxe2+ {[%emt 0:00:01]} 56. Kxe2 {[%emt 0:00:07] Whites escaped into a draw.  Weighted Error Value: White=0.11 (very precise) /Black=0.11 (very precise)} 1/2-1/2

[Event "2nd Bieszczady Chess-ch A 2022"]
[Site "Bystre"]
[Date "2022.07.18"]
[Round "1.8"]
[White "Sygulski, Piotr"]
[Black "Karvatskyi, Oleksii"]
[Result "1-0"]
[ECO "D78"]
[WhiteElo "2013"]
[BlackElo "1804"]
[Annotator "TA"]
[PlyCount "53"]
[EventDate "2022.07.17"]
[EventCountry "POL"]
[SourceTitle "playchess.com"]
[Source "ChessBase"]
[SourceQuality "1"]
[TimeControl "5400+30"]

{[%evp 17,53,54,66,48,55,50,110,111,116,109,102,98,101,113,116,107,108,109,106,87,92,33,320,313,304,295,645,627,698,533,526,533,898,890,2047,2036,1990,1954]} 1. d4 {[%emt 0:00:00]} Nf6 {[%emt 0:00:07]} 2. Nf3 {[%emt 0:00:19]} g6 {[%emt 0:01:33]} 3. g3 {[%emt 0:00:57]} d5 {[%emt 0:00:06]} 4. Bg2 {[%emt 0:00:54]} Bg7 {[%emt 0:00:06]} 5. c4 {[%emt 0:01:21]} c6 {[%emt 0:04:52]} 6. O-O {[%emt 0:02:32]} O-O {[%emt 0:01:53]} 7. Qb3 {[%emt 0:03:02]} Nbd7 {[%emt 0:08:11]} 8. cxd5 {[%emt 0:03:50]} cxd5 {[%emt 0:00:19]} 9. Nc3 {[%emt 0:01:31]} Nb6 {[%emt 0:07:30]} 10. Ne5 {[%emt 0:03:06] D78: Fianchetto Grünfeld: 6 0-0 c6.} Be6 {[%emt 0:06:17][%cal Of6e4]} 11. a4 {[%emt 0:10:41]} Rb8 {[%emt 0:10:55]} (11... a5 $14) 12. Rd1 {[%emt 0:07:37] [#] White is much more active. The black rooks are badly placed. White is better.} Nc4 $146 ({Predecessor:} 12... Ne8 13. Bf4 g5 14. Be3 f6 15. a5 Na8 16. Nd3 Nec7 17. Nb4 Qd7 {1-0 (41) Schnitzspan,L (2287)-Hoeck,R (2064) Bad Homburg 2008}) 13. Nxc4 {[%emt 0:02:44]} dxc4 {[%emt 0:01:40]} 14. Qa3 {[%emt 0:00:18] Strongly threatening Bf4.} Qd7 {[%emt 0:06:30]} 15. Qb4 {[%emt 0:06:10]} Nd5 {[%emt 0:06:06]} 16. Nxd5 {[%emt 0:04:18]} (16. Qxc4 $2 Ne3 $1 {[%mdl 512]} 17. Qb5 Nxd1 18. Qxd7 Bxd7 $19) 16... Bxd5 {[%emt 0:00:01]} 17. e4 {[%emt 0:00:24][%cal Be2e4,Be4e5,Be5e6][%mdl 32]} Be6 {[%emt 0:04:09]} 18. Bf4 {[%emt 0:05:56]} Rbc8 {[%emt 0:04:14]} 19. Rac1 {[%emt 0:04:24]} (19. a5 $16) 19... f5 $2 {[%emt 0:06:18][%mdl 8192] [#] Loses the game.} (19... Bxd4 20. Be3 Bxe3 21. Rxd7 Bxc1 22. Rxb7 $16 (22. Rxe7 c3 $16)) ({Black should try} 19... a5 $14 20. Qa3 (20. Qxa5 Ra8 $11) 20... Rfe8) 20. d5 $1 $18 {[%emt 0:03:33][%cal Bd4d5,Bd5d6,Bd6d7][%mdl 32]} Bf7 {[%emt 0:00:14]} 21. e5 {[%emt 0:01:19] e6 is the strong threat.} (21. Rxc4 Rxc4 22. Qxc4 Rc8 $16) 21... Qd8 $2 {[%emt 0:02:43]} (21... e6 22. d6 (22. Rxc4 Rxc4 23. Qxc4 exd5 $18) 22... Be8) 22. e6 {[%emt 0:01:44] White is clearly winning.} Be8 {[%emt 0:00:01]} 23. Rxc4 {[%emt 0:00:30]} Rxc4 {[%emt 0:00:18]} 24. Qxc4 {[%emt 0:00:02] Threatens to win with d6.} Bxb2 {[%emt 0:00:06]} 25. d6 {[%emt 0:00:11] Black must now prevent d7.} Ba3 {[%emt 0:01:24]} 26. d7 {[%emt 0:00:29]} g5 {[%emt 0:00:26]} 27. Bc7 {[%emt 0:00:05] Weighted Error Value: White=0.15 (very precise) /Black=0.74} 1-0

[Event "2nd Bieszczady Chess-ch A 2022"]
[Site "Bystre"]
[Date "2022.07.19"]
[Round "2.1"]
[White "Razin, Vadim"]
[Black "Kasperek, Ryszard"]
[Result "1-0"]
[ECO "E12"]
[WhiteElo "2428"]
[BlackElo "2058"]
[Annotator "TA"]
[PlyCount "77"]
[EventDate "2022.07.17"]
[EventCountry "POL"]
[SourceTitle "playchess.com"]
[Source "ChessBase"]
[SourceQuality "1"]
[TimeControl "5400+30"]

{[%evp 17,77,29,20,31,26,26,38,15,49,12,65,36,114,65,83,16,43,25,21,33,35,55,81,23,30,27,91,26,13,23,25,10,37,45,80,83,79,20,81,0,0,0,0,0,0,0,0,0,0,-154,672,670,697,685,1268,1256,1572,1110,1692,1527,1336,1226]} 1. d4 {[%emt 0:00:02]} Nf6 {[%emt 0:00:19]} 2. Nf3 {[%emt 0:00:04]} e6 {[%emt 0:01:02]} 3. c4 {[%emt 0:00:04]} b6 {[%emt 0:00:31]} 4. a3 {[%emt 0:00:07]} Ba6 {[%emt 0:00:55]} 5. Qc2 {[%emt 0:00:23]} Bb7 {[%emt 0:01:35]} 6. Nc3 {[%emt 0:00:08]} c5 {[%emt 0:02:31]} 7. e4 {[%emt 0:00:13]} cxd4 {[%emt 0:00:34]} 8. Nxd4 {[%emt 0:00:04]} Bc5 {[%emt 0:01:57] 8...Nc6 is more fashionable.} 9. Nb3 {[%emt 0:00:12]} Nc6 {[%emt 0:01:09]} 10. Nxc5 {[%emt 0:00:12] E12: Queen's Indian: Unusual White 4th moves, 4 a3, 4 Nc3 Bb7 5 a3 and 4 Nc3 Bb7 .} Nd4 {[%emt 0:08:52] [#]} 11. Qd1 {[%emt 0:01:04]} bxc5 {[%emt 0:00:53]} 12. Bd3 {[%emt 0:01:03] White is slightly better.} d6 {[%emt 0:11:55]} 13. O-O {[%emt 0:00:36]} h6 {[%emt 0:13:39]} (13... a5 $11) 14. f4 {[%emt 0:05:06]} e5 {[%emt 0:02:33] [#]} (14... O-O $14) 15. b4 $146 {[%emt 0:13:39]} (15. fxe5 $16 dxe5 16. b4) ({Predecessor:} 15. f5 a5 16. a4 Qb6 17. Nb5 Bxe4 18. Bxe4 Nxe4 19. Ra3 Nf6 20. Re3 Kf8 21. Bd2 {1-0 (49) Timoscenko,G (2515)-Hauchard,A (2510) Pula 1997}) 15... O-O {[%emt 0:12:52]} 16. f5 {[%emt 0:08:05]} (16. fxe5 $16 dxe5 17. Nd5 Bxd5 18. exd5) 16... cxb4 {[%emt 0:06:46]} 17. axb4 {[%emt 0:00:05]} Qb6 {[%emt 0:00:12][%csl LRb4,LRf5]} 18. Na4 $1 {[%emt 0:10:00]} Qc7 {[%emt 0:00:57]} (18... Qxb4 $2 19. Rb1 Qa5 20. Rxb7 $18) 19. Re1 {[%emt 0:04:32]} a6 {[%emt 0:05:18]} 20. Be3 {[%emt 0:03:31]} ({Better is} 20. Rb1 $16) 20... Bc6 {[%emt 0:03:03]} 21. Nc3 {[%emt 0:01:11]} Rfe8 {[%emt 0:02:22]} (21... Rfb8 $11) 22. Nd5 {[%emt 0:03:09]} ({White should play} 22. Bf2 $16) 22... Bxd5 $11 {[%emt 0:01:14]} 23. exd5 {[%emt 0:00:18]} Rab8 {[%emt 0:06:48]} 24. Rb1 {[%emt 0:03:50]} a5 {[%emt 0:03:09]} 25. b5 {[%emt 0:02:06]} Nd7 {[%emt 0:03:49]} 26. Qg4 {[%emt 0:01:22][%csl LRd4,LRh6] Bxh6 is the strong threat.} Kf8 {[%emt 0:00:05] [#]} 27. Rb2 {[%emt 0:27:04]} (27. f6 $1 $16 Nxf6 28. Qh4) 27... Qc5 {[%emt 0:02:59]} (27... a4 $11 {keeps the balance.}) 28. f6 {[%emt 0:09:44]} (28. Ra1 $16) 28... Nxf6 {[%emt 0:00:21] Pair of Knights!} 29. Qh4 {[%emt 0:00:04] Threatens to win with Rf2.} Qa3 $1 {[%emt 0:03:51][%csl LRb2,LRd3]} 30. Rd2 {[%emt 0:00:29][%cal Oe3h6] Black must now prevent Bxh6!} e4 {[%emt 0:00:34] Strongly threatening ...Nf5.} 31. Bxd4 {[%emt 0:03:23]} exd3 {[%emt 0:00:02]} 32. Ra1 $36 {[%emt 0:01:14][%mdl 2048] White is pushing.} Qb4 {[%emt 0:01:07][%csl LRc4,LRd2]} 33. Rb2 {[%emt 0:00:41]} (33. Rxd3 $11 Re4 34. Qg3) 33... Re4 $2 {[#] This move loses the game for Black.} (33... Qxc4 $17 34. Bxf6 Re4) 34. Qg3 $1 $18 {[%emt 0:02:59] White is clearly winning.} Nh5 {[%emt 0:02:23]} (34... Qxc4 35. Qxd6+) 35. Qxd3 {[%emt 0:00:32]} Re1+ {[%emt 0:00:13] [#]} 36. Kf2 $1 {[%emt 0:00:29]} ({Weaker is} 36. Rxe1 Qxe1+ 37. Qf1 Qe4 $11) 36... Nf4 {[%emt 0:01:08] [#]} 37. Qg3 $1 {[%emt 0:00:31]} Qxb2+ {[%emt 0:00:44]} (37... Re2+ 38. Rxe2) 38. Bxb2 {[%emt 0:00:02]} Re2+ {[%emt 0:00:26]} 39. Kf1 {[%emt 0:00:16] Weighted Error Value: White=0.28 (precise) /Black=0.42} 1-0